[Event "34th MPL National U14-ch 2022"]
[Site "Ahmedabad"]
[Date "2022.05.11"]
[Round "5.7"]
[White "Jaidambareesh N R"]
[Black "Shankhodip De"]
[Result "1-0"]
[ECO "D02"]
[WhiteElo "1521"]
[BlackElo "1810"]
[Annotator "NA RC COMBH"]
[PlyCount "61"]
[EventDate "2022.05.09"]
[EventType "swiss"]
[EventCountry "IND"]
[SourceTitle "playchess.com"]
[Source "ChessBase"]
[SourceQuality "1"]
[TimeControl "5400+30"]

{[%evp 14,61,40,0,52,45,56,0,-11,-4,-6,-56,32767,32767,32767,32767,32767,32767,32767,32767,-23,-22,0,-34,0,0,0,0,8,8,8,4,0,5,0,0,4,0,4,0,0,0,715,805,734,726,726,71,841,890]} 1. Nf3 {[%emt 0:00:10]} c5 {[%emt 0:00:12]} 2. g3 {[%emt 0:00:05]} Nc6 {[%emt 0:00:10]} 3. d4 {[%emt 0:00:06]} cxd4 {[%emt 0:00:51]} 4. Nxd4 {[%emt 0:00:07]} e5 {[%emt 0:05:08]} 5. Nxc6 {[%emt 0:00:12]} bxc6 {[%emt 0:00:04]} 6. Bg2 {[%emt 0:00:07]} Nf6 {[%emt 0:05:26]} 7. O-O {[%emt 0:00:06]} d5 {[%emt 0:05:55]} (7... h5 $11 {might be stronger.}) 8. c4 {[%emt 0:00:06]} Be7 {[%emt 0:00:52]} 9. Bg5 {[%emt 0:00:21]} Be6 {[%emt 0:02:29]} 10. Qa4 {[%emt 0:00:36]} ({White should try} 10. Nc3 $14) 10... O-O {[%emt 0:03:27]} 11. Bxf6 {[%emt 0:12:19]} Bxf6 {[%emt 0:00:08]} 12. cxd5 {[%emt 0:00:08]} (12. Rd1 $11) 12... cxd5 {[%emt 0:00:33]} 13. Nc3 {[%emt 0:00:06]} e4 {[%emt 0:12:22]} 14. Rad1 {[%emt 0:09:27]} Bxc3 {[%emt 0:00:34]} 15. bxc3 {[%emt 1:14:04]} Qc7 {[%emt 0:02:11]} 16. Qd4 {[%emt 0:00:00]} Rfc8 {[%emt 0:09:14]} (16... Rac8 $15 {is superior.}) 17. f3 {[%emt 0:00:00]} f5 {[%emt 0:05:47]} 18. Bh3 {[%emt 0:00:00]} (18. g4 $5 {[%cal Rg4f5]}) 18... g6 {[%emt 0:03:09]} ({Much less strong is} 18... Qxc3 19. fxe4 Qxd4+ 20. Rxd4 $14) (18... Qc5 $15) 19. g4 $1 {[%emt 0:00:00]} Qxc3 {[%emt 0:04:30]} 20. gxf5 {[%emt 0:00:00]} gxf5 {[%emt 0:00:04]} 21. fxe4 $1 {[%emt 0:00:00]} Qxd4+ {[%emt 0:08:21]} ({Less strong is} 21... Qxh3 22. Rd3 Rc4 23. Qf6 Qg4+ 24. Rg3 Rxe4 25. Rxg4+ Rxg4+ 26. Kf2 $18) 22. Rxd4 {[%emt 0:00:00]} dxe4 {[%emt 0:00:14]} 23. Bxf5 {[%emt 0:00:00]} Bxf5 {[%emt 0:04:38]} 24. Rxf5 $11 {[%emt 0:00:00]} Rc2 {[%emt 0:04:22]} 25. Rxe4 {[%emt 0:00:00]} Rxa2 {[%emt 0:00:03]} 26. Re7 {[%emt 0:00:00]} Ra6 {[%emt 0:00:51]} 27. Rff7 {[%emt 0:00:00]} h6 $2 {[%emt 0:01:13]} (27... Rg6+ $11 28. Kf2 a5) 28. Rg7+ {[%emt 0:00:00]} Kh8 {[%emt 0:00:19]} 29. Rh7+ {[%emt 0:00:00]} Kg8 {[%emt 0:00:05]} 30. Reg7+ {[%emt 0:00:00]} Kf8 {[%emt 0:00:10]} 31. Rg3 {[%emt 0:08:00]} 1-0

[Event "34th MPL National U14-ch 2022"]
[Site "Ahmedabad"]
[Date "2022.05.11"]
[Round "5.8"]
[White "Anubhav Rawat"]
[Black "Abhash Roimya Saikia"]
[Result "1-0"]
[ECO "B13"]
[WhiteElo "1329"]
[BlackElo "1794"]
[Annotator "NA RC COMBH"]
[PlyCount "95"]
[EventDate "2022.05.09"]
[EventType "swiss"]
[EventCountry "IND"]
[SourceTitle "playchess.com"]
[Source "ChessBase"]
[SourceQuality "1"]
[TimeControl "5400+30"]

1. e4 {[%emt 0:00:16]} c6 {[%emt 0:00:24]} 2. d4 {[%emt 0:00:07]} d5 {[%emt 0:00:10]} 3. exd5 {[%emt 0:00:07]} cxd5 {[%emt 0:00:13]} 4. c4 {[%emt 0:00:10]} Nf6 {[%emt 0:00:32]} 5. Nc3 {[%emt 0:00:09]} Nc6 {[%emt 0:01:08]} 6. Nf3 {[%emt 0:00:06]} Bg4 {[%emt 0:05:41]} 7. cxd5 {[%emt 0:03:23]} Nxd5 {[%emt 0:01:13]} 8. Qb3 {[%emt 0:00:42]} Bxf3 {[%emt 0:02:44]} 9. gxf3 {[%emt 0:00:32]} e6 {[%emt 0:03:42]} 10. Qxb7 {[%emt 0:00:34]} Nxd4 {[%emt 0:01:06]} 11. Bb5+ {[%emt 0:00:11]} Nxb5 {[%emt 0:00:06]} 12. Qc6+ {[%emt 0:00:07]} Ke7 {[%emt 0:00:39]} 13. Qxb5 {[%emt 0:00:09]} Nxc3 {[%emt 0:02:19]} 14. bxc3 {[%emt 0:01:46]} Qd5 {[%emt 0:13:23]} 15. Bg5+ {[%emt 0:09:22]} f6 {[%emt 0:01:11]} 16. Qxd5 {[%emt 0:00:07]} exd5 {[%emt 0:00:03]} 17. Be3 {[%emt 0:01:12]} Ke6 {[%emt 0:10:34]} 18. O-O {[%emt 0:17:27]} Ba3 {[%emt 0:08:04]} 19. Rfe1 {[%emt 0:03:50]} Kd7 {[%emt 0:01:07]} 20. Rad1 {[%emt 0:06:10]} Kc6 {[%emt 0:00:43]} 21. Rd3 {[%emt 0:01:29]} Bc5 {[%emt 0:19:03]} 22. Bxc5 {[%emt 0:01:52]} Kxc5 {[%emt 0:01:21]} 23. Re7 {[%emt 0:00:17]} Rhe8 {[%emt 0:00:47]} 24. Rd7 {[%emt 0:06:32]} Re5 {[%emt 0:01:50]} 25. Rc7+ {[%emt 0:04:03]} Kb5 {[%emt 0:00:39]} 26. f4 {[%emt 0:01:07]} Rf5 {[%emt 0:05:15]} 27. Rxg7 {[%emt 0:01:52]} Rxf4 {[%emt 0:02:29]} 28. Rxd5+ {[%emt 0:00:53]} Kc4 {[%emt 0:00:28]} 29. Rdd7 {[%emt 0:00:58]} Kxc3 {[%emt 0:00:32]} 30. Rxa7 {[%emt 0:00:30]} Ra4 {[%emt 0:00:56]} 31. Rxa4 {[%emt 0:04:34]} Rxa4 {[%emt 0:00:06]} 32. Rxh7 {[%emt 0:00:24]} Rxa2 {[%emt 0:00:42]} 33. Rh4 {[%emt 0:02:19]} Ra5 {[%emt 0:01:04]} 34. f3 {[%emt 0:02:34]} Re5 {[%emt 0:01:50]} 35. Kf2 {[%emt 0:00:18]} Kd3 {[%emt 0:00:41]} 36. Rf4 {[%emt 0:08:45]} Rh5 {[%emt 0:02:23]} 37. Kg3 {[%emt 0:01:22]} f5 {[%emt 0:02:33]} 38. Rh4 {[%emt 0:00:06]} Rg5+ {[%emt 0:00:06]} 39. Kf4 {[%emt 0:00:10]} Rg8 {[%emt 0:00:28]} 40. Rh5 {[%emt 0:01:07]} Ke2 {[%emt 0:00:44]} 41. Rxf5 {[%emt 0:00:25]} Rh8 {[%emt 0:00:14]} 42. Kg3 {[%emt 0:00:44]} Rg8+ {[%emt 0:00:11]} 43. Kh4 {[%emt 0:01:10]} Kf2 {[%emt 0:01:47]} 44. h3 {[%emt 0:02:36]} Rh8+ {[%emt 0:00:24]} 45. Kg4 {[%emt 0:00:29]} Rg8+ {[%emt 0:01:27]} 46. Rg5 {[%emt 0:00:09]} Rxg5+ {[%emt 0:00:40]} 47. Kxg5 {[%emt 0:00:05]} Kxf3 {[%emt 0:00:05]} 48. h4 {[%emt 0:00:05]} 1-0

[Event "34th MPL National U14-ch 2022"]
[Site "Ahmedabad"]
[Date "2022.05.11"]
[Round "5.9"]
[White "Vaz, Ethan"]
[Black "Daaevik Wadhawan"]
[Result "1-0"]
[ECO "B99"]
[WhiteElo "1792"]
[BlackElo "1603"]
[Annotator "NA RC COMBH"]
[PlyCount "129"]
[EventDate "2022.05.09"]
[EventType "swiss"]
[EventCountry "IND"]
[SourceTitle "playchess.com"]
[Source "ChessBase"]
[SourceQuality "1"]
[TimeControl "5400+30"]

1. e4 {[%emt 0:00:25]} c5 {[%emt 0:00:10]} 2. Nf3 {[%emt 0:00:17]} d6 {[%emt 0:00:02]} 3. d4 {[%emt 0:00:27]} cxd4 {[%emt 0:00:02]} 4. Nxd4 {[%emt 0:00:37]} Nf6 {[%emt 0:00:02]} 5. Nc3 {[%emt 0:00:35]} a6 {[%emt 0:00:02]} 6. Bg5 {[%emt 0:01:23]} e6 {[%emt 0:00:07]} 7. f4 {[%emt 0:01:30]} Be7 {[%emt 0:00:06]} 8. Qf3 {[%emt 0:01:03]} Qc7 {[%emt 0:00:05]} 9. O-O-O {[%emt 0:01:21]} Nbd7 {[%emt 0:00:06]} 10. g4 {[%emt 0:01:16]} h6 {[%emt 0:00:06]} 11. Bxf6 {[%emt 0:02:12]} Bxf6 {[%emt 0:00:02]} 12. h4 {[%emt 0:04:07]} Nb6 {[%emt 0:00:02]} 13. g5 {[%emt 0:06:54]} Bxd4 {[%emt 0:00:03]} 14. Rxd4 {[%emt 0:00:07]} Qc5 {[%emt 0:00:03]} 15. Rd2 {[%emt 0:08:54]} Bd7 {[%emt 0:00:09]} 16. Bd3 {[%emt 0:07:30]} O-O-O {[%emt 0:08:44]} 17. Rg2 {[%emt 0:15:40]} hxg5 {[%emt 0:21:42]} 18. Rxg5 {[%emt 0:13:27]} Qd4 {[%emt 0:01:40]} 19. Ne2 {[%emt 0:01:10]} Qf6 {[%emt 0:00:10]} 20. Qe3 {[%emt 0:04:15]} Na4 {[%emt 0:12:18]} 21. c3 {[%emt 0:11:30]} Kb8 {[%emt 0:20:46]} 22. h5 {[%emt 0:08:10]} Nc5 {[%emt 0:11:30]} 23. Bc2 {[%emt 0:00:35]} e5 {[%emt 0:04:35]} 24. fxe5 {[%emt 0:00:51]} dxe5 {[%emt 0:00:07]} 25. Rhg1 {[%emt 0:00:48]} Qe7 {[%emt 0:01:47]} 26. Rxg7 {[%emt 0:02:12]} Ne6 {[%emt 0:01:09]} 27. R7g2 {[%emt 0:01:14]} Rxh5 {[%emt 0:01:18]} 28. Rg8 {[%emt 0:01:48]} Bb5 {[%emt 0:06:01]} 29. Bd3 {[%emt 0:01:08]} Bxd3 {[%emt 0:01:51]} 30. Qxd3 {[%emt 0:00:02]} Rh8 {[%emt 0:00:09]} 31. Rxh8 {[%emt 0:01:25]} Rxh8 {[%emt 0:00:01]} 32. Qg3 {[%emt 0:01:54]} f6 {[%emt 0:01:24]} 33. Kb1 {[%emt 0:01:09]} Rd8 {[%emt 0:00:08]} 34. Qe3 {[%emt 0:01:02]} Qh7 {[%emt 0:02:01]} 35. a3 {[%emt 0:00:26]} Ng5 {[%emt 0:09:32]} 36. Ng3 {[%emt 0:00:29]} Qh2 {[%emt 0:00:00]} 37. Qb6 {[%emt 0:00:32]} Rd2 {[%emt 0:00:00]} 38. Rh1 {[%emt 0:00:28]} Rxb2+ {[%emt 0:00:00]} 39. Qxb2 {[%emt 0:00:01]} Qxg3 {[%emt 0:00:00]} 40. Qb6 {[%emt 0:00:51]} Qd3+ {[%emt 0:00:00]} 41. Kb2 {[%emt 0:00:05]} Nh3 {[%emt 0:00:00]} 42. Rh2 {[%emt 0:01:03]} Qd7 {[%emt 0:00:18]} 43. a4 {[%emt 0:00:32]} Ka8 {[%emt 0:01:12]} 44. Rg2 {[%emt 0:00:28]} Ng5 {[%emt 0:00:17]} 45. Qxf6 {[%emt 0:00:12]} Nxe4 {[%emt 0:00:32]} 46. Qxe5 {[%emt 0:00:18]} Qc6 {[%emt 0:00:38]} 47. Rg8+ {[%emt 0:00:13]} Ka7 {[%emt 0:00:01]} 48. a5 {[%emt 0:01:04]} Nd6 {[%emt 0:01:07]} 49. Qd4+ {[%emt 0:00:28]} b6 {[%emt 0:00:04]} 50. Rg7+ {[%emt 0:00:31]} Ka8 {[%emt 0:00:08]} 51. Kc2 {[%emt 0:00:35]} Qc5 {[%emt 0:02:15]} 52. Qxc5 {[%emt 0:00:39]} bxc5 {[%emt 0:00:01]} 53. Kb3 {[%emt 0:00:11]} Kb8 {[%emt 0:00:08]} 54. Rd7 {[%emt 0:00:30]} Nb7 {[%emt 0:00:50]} 55. Kc4 {[%emt 0:00:07]} Kc8 {[%emt 0:00:13]} 56. Rxb7 {[%emt 0:00:08]} Kxb7 {[%emt 0:00:02]} 57. Kxc5 {[%emt 0:00:07]} Kc7 {[%emt 0:00:03]} 58. c4 {[%emt 0:00:04]} Kb7 {[%emt 0:00:08]} 59. Kd6 {[%emt 0:00:03]} Kb8 {[%emt 0:00:09]} 60. Kd7 {[%emt 0:00:08]} Kb7 {[%emt 0:00:02]} 61. c5 {[%emt 0:00:29]} Ka7 {[%emt 0:00:04]} 62. c6 {[%emt 0:00:03]} Kb8 {[%emt 0:00:04]} 63. c7+ {[%emt 0:00:03]} Ka7 {[%emt 0:00:03]} 64. Kc6 {[%emt 0:00:10]} Ka8 {[%emt 0:00:04]} 65. c8=Q+ {[%emt 0:00:07]} 1-0

[Event "34th MPL National U14-ch 2022"]
[Site "Ahmedabad"]
[Date "2022.05.11"]
[Round "5.10"]
[White "Rohith Krishna S"]
[Black "Md Imran"]
[Result "0-1"]
[ECO "B06"]
[WhiteElo "2337"]
[BlackElo "2122"]
[Annotator "TA"]
[PlyCount "184"]
[EventDate "2022.05.09"]
[EventType "swiss"]
[EventCountry "IND"]
[SourceTitle "playchess.com"]
[Source "ChessBase"]
[SourceQuality "1"]
[TimeControl "5400+30"]

{[%evp 9,183,47,52,12,12,6,17,-3,11,3,6,7,6,10,41,10,75,75,112,6,17,9,67,40,68,58,87,56,67,50,75,0,54,59,61,57,51,51,103,48,114,0,140,57,173,72,89,67,112,0,87,60,72,45,50,46,66,70,69,0,62,34,67,44,64,0,59,19,57,0,74,48,62,34,35,0,86,39,50,-20,-15,-17,-15,-14,-6,-8,-6,-15,-10,-11,-16,-14,0,0,0,0,0,0,0,0,0,0,0,-10,0,0,0,-9,-7,-23,-11,-16,-12,-54,-52,-207,-205,-203,-200,-234,-227,-335,-321,-537,-505,-634,-610,-8530,-5800,-3748,-1072,-5285,-4116,-12838,-12831,-12837,-5804,-12850,-12850,-27999,-27999,-27999,-27999,-27999,-27999,-27999,-27999,-27999,-27999,-27998,-27998,-27999,-27999,-27999,-27999,-27999,-27999,-27999,-27999,-27999,-27999,-27994,-27994,-27995,-27993,-27994,-27994,-27995,-27995,-27996,-27996,-27997,-27997,-27999,-27999,-29999]} 1. e4 {[%emt 0:01:05]} g6 {[%emt 0:00:33]} 2. d4 {[%emt 0:00:36]} Bg7 {[%emt 0:00:05]} 3. Nf3 {[%emt 0:00:13]} d5 {[%emt 0:00:25]} 4. exd5 {[%emt 0:02:19]} Nf6 {[%emt 0:00:09]} 5. h3 {[%emt 0:00:44]} O-O {[%emt 0:00:06]} 6. Nc3 {[%emt 0:03:05] B06: Modern Defence.} Nxd5 {[%emt 0:00:20]} 7. Ne4 {[%emt 0:11:16] [#]} Nc6 $146 {[%emt 0:07:43]} ({Predecessor:} 7... Nd7 8. Bc4 N5b6 9. Bb3 Nf6 10. Nxf6+ exf6 11. O-O a5 12. a4 Re8 13. c4 c6 {1-0 (60) Zaichik,G-Peresipkin,V Almaty 1977}) 8. Be2 {[%emt 0:06:33] The position is equal.} Ndb4 {[%emt 0:00:32] [#] ...Bf5 is the strong threat.} 9. a3 {[%emt 1:09:09]} (9. c3 {is more complex.} Bf5 10. Nfg5 f6 11. g4) 9... Bf5 {[%emt 0:00:26]} 10. axb4 {[%emt 0:00:00]} Bxe4 {[%emt 0:00:02]} 11. c3 {[%emt 0:00:00]} a6 {[%emt 0:14:03]} 12. Bf4 {[%emt 0:00:00]} h6 {[%emt 0:16:14]} (12... e5 $11 13. dxe5 Qe7) 13. O-O $16 {[%emt 0:00:00]} g5 {[%emt 0:00:03]} 14. Be5 {[%emt 0:00:00]} (14. Bg3 $16) 14... Nxe5 {[%emt 0:04:16]} 15. Nxe5 {[%emt 0:00:00]} c6 {[%emt 0:02:35]} (15... Bxe5 $11 16. dxe5 Qxd1 17. Rfxd1 Rfd8) 16. Bf3 {[%emt 0:00:00]} Bh7 {[%emt 0:01:40]} 17. Re1 {[%emt 0:00:00]} e6 {[%emt 0:00:19]} 18. Qb3 {[%emt 0:00:00]} Kh8 {[%emt 0:00:54]} 19. Bh5 {[%emt 0:00:00]} Bg8 {[%emt 0:02:22]} 20. Bf3 {[%emt 0:00:00]} (20. Qc2 $16) 20... Qc7 {[%emt 0:02:34]} ({Black should play} 20... Bh7 $11) 21. Qc4 $36 {[%emt 0:00:00][%mdl 2048] White is pushing.} Rad8 {[%emt 0:45:39]} 22. Rad1 {[%emt 0:00:00]} Rfe8 {[%emt 0:00:00]} 23. Qd3 {[%emt 0:00:00]} Bf8 {[%emt 0:00:00]} (23... Bh7 $14 24. Qf1 Kg8) 24. Qe3 {[%emt 0:00:16]} (24. Bh5 $16) 24... Kg7 {[%emt 0:00:00]} (24... f6 $14) 25. Qd3 {[%emt 0:01:11]} (25. Bh5 $16) 25... Qd6 {[%emt 0:00:00]} (25... Kh8 $11) 26. Qc2 {[%emt 0:00:45]} (26. Bh5 $16) 26... Ra8 {[%emt 0:00:00]} (26... Qc7 $14) 27. Ra1 {[%emt 0:00:53]} (27. Bh5 $18) 27... Red8 {[%emt 0:00:00]} 28. Ra5 {[%emt 0:00:59][%cal Oh3h4]} Rac8 {[%emt 0:00:00]} 29. Raa1 {[%emt 0:00:16]} (29. Re3 $16) 29... Qe7 {[%emt 0:00:00]} (29... Ra8 $1 $11) 30. Rac1 {[%emt 0:01:01]} Qf6 {[%emt 0:00:00]} 31. Qe2 {[%emt 0:00:47]} Bd6 {[%emt 0:00:00]} 32. Rcd1 {[%emt 0:00:36]} Qf5 {[%emt 0:00:00]} 33. Be4 {[%emt 0:00:54]} Qf6 {[%emt 0:00:00]} 34. Bf3 {[%emt 0:00:36]} (34. Ng4 $14 Qe7 35. Bc2 (35. Ne5 Bxe5 36. dxe5 Bh7 $11)) 34... Qe7 {[%emt 0:00:00]} ({Better is} 34... Qf5 $11) 35. Qc2 {[%emt 0:00:22]} Qf8 {[%emt 0:00:00]} 36. Kf1 {[%emt 0:01:02]} Bc7 {[%emt 0:00:00]} 37. Kg1 {[%emt 0:00:41]} (37. Re3 $14) 37... Bh7 {[%emt 0:00:00]} (37... Bd6 $1 $11) 38. Be4 {[%emt 0:00:07]} Bg8 {[%emt 0:00:00]} 39. Bf3 {[%emt 0:00:02]} (39. Bd3 $14) 39... Ra8 {[%emt 0:00:00]} (39... Bh7 $11 {keeps the balance.} 40. Be4 Bxe4 41. Qxe4 Bxe5 42. Qxe5+ (42. dxe5 Rxd1 43. Rxd1 Rd8 $11) 42... Kg8) 40. Ra1 {[%emt 0:00:04]} Qe7 {[%emt 0:00:00]} 41. Kf1 {[%emt 0:00:24]} Qf6 {[%emt 0:00:00]} 42. Kg1 {[%emt 0:00:10]} Qf4 {[%emt 0:00:00]} (42... Qe7 $11) 43. Qe2 {[%emt 0:00:50]} (43. Re3 $16) 43... Bh7 {[%emt 0:00:00]} 44. Qe3 {[%emt 0:01:50]} (44. Rad1 $14) 44... Qxe3 $11 {[%emt 0:00:00]} 45. Rxe3 {[%emt 0:00:07]} a5 {[%emt 0:00:00] [#] Threatens to win with ...axb4.} 46. bxa5 {[%emt 0:01:01]} Rxa5 {[%emt 0:00:00]} 47. Rxa5 {[%emt 0:00:12]} Bxa5 {[%emt 0:00:00]} 48. Be4 {[%emt 0:01:40]} Bxe4 {[%emt 0:00:00]} 49. Rxe4 {[%emt 0:00:01][%mdl 4096] Endgame KRB-KRN} Bc7 {[%emt 0:00:00]} 50. Nd3 {[%emt 0:00:49]} Kf6 {[%emt 0:00:00]} 51. Re1 {[%emt 0:00:35]} Ra8 {[%emt 0:00:00]} 52. Kf1 {[%emt 0:00:15]} Ke7 {[%emt 0:00:00]} 53. Ke2 {[%emt 0:00:17]} Ra5 {[%emt 0:00:00]} 54. Kd2 {[%emt 0:00:36]} Bd6 {[%emt 0:00:00]} 55. Kc2 {[%emt 0:00:34]} h5 {[%emt 0:00:00]} 56. g4 {[%emt 0:00:57]} Ra8 {[%emt 0:00:00]} 57. Kd2 {[%emt 0:01:10]} Rh8 {[%emt 0:00:00]} 58. Ke2 {[%emt 0:00:15]} f5 {[%emt 0:00:00]} 59. gxf5 {[%emt 0:00:40]} exf5 {[%emt 0:00:00]} 60. Kf3+ {[%emt 0:00:02]} Kf6 {[%emt 0:00:00]} 61. Ra1 {[%emt 0:00:45]} g4+ {[%emt 0:00:00]} 62. hxg4 $2 {[%emt 0:00:02] Loses the game.} (62. Kg2 $15) 62... fxg4+ $19 {[%emt 0:00:00]} 63. Kg2 {[%emt 0:00:35]} h4 {[%emt 0:00:00][%cal Bh5h4,Bh4h3][%mdl 32]} 64. Re1 {[%emt 0:00:41]} Kf5 {[%emt 0:00:00]} 65. Ne5 {[%emt 0:00:54]} (65. Kg1 $142) 65... Re8 {[%emt 0:00:00][%cal Rd6e5]} 66. f3 $2 {[%emt 0:00:44]} (66. f4 {keeps fighting.}) 66... h3+ {[%emt 0:00:00]} ({Inferior is} 66... Bxe5 67. fxg4+ Kxg4 68. dxe5 $15) 67. Kg3 {[%emt 0:00:10]} gxf3 {[%emt 0:00:00]} 68. Kxf3 {[%emt 0:01:07]} Bxe5 {[%emt 0:00:00]} 69. dxe5 {[%emt 0:00:13]} Rxe5 {[%emt 0:00:00] KR-KR} (69... h2 $142 70. Kg2 Rxe5 71. Rf1+ Kg4) 70. Rh1 {[%emt 0:01:28]} Rd5 {[%emt 0:00:00] aiming for ...Rd3+.} 71. Kg3 {[%emt 0:00:36]} Rd3+ {[%emt 0:00:00]} 72. Kh4 {[%emt 0:00:32]} Rf3 {[%emt 0:00:00]} (72... Rd2 $142 73. Kxh3 Rxb2) 73. Rxh3 {[%emt 0:00:44]} Rxh3+ {[%emt 0:00:00]} 74. Kxh3 {[%emt 0:00:01] KPP-KPP} Ke4 {[%emt 0:00:00] Black mates.} 75. Kg4 {[%emt 0:00:40]} Kd3 {[%emt 0:00:00]} 76. Kf4 {[%emt 0:00:34]} Kc2 {[%emt 0:00:00]} 77. Ke5 {[%emt 0:00:38]} Kxb2 {[%emt 0:00:00] KPP-KP} 78. Kd4 {[%emt 0:00:19]} Kb3 {[%emt 0:00:00]} 79. Kc5 {[%emt 0:00:12]} Kxc3 {[%emt 0:00:00] KP-KP} 80. Kb6 {[%emt 0:00:24]} Kb4 {[%emt 0:00:00]} 81. Kxb7 {[%emt 0:00:09] KP-K} c5 {[%emt 0:00:00]} 82. Kb6 {[%emt 0:00:13]} c4 {[%emt 0:00:00]} 83. Ka6 {[%emt 0:00:03]} c3 {[%emt 0:00:00]} 84. Kb7 {[%emt 0:00:09]} c2 {[%emt 0:00:00]} 85. Kc6 {[%emt 0:00:10]} c1=Q+ {[%emt 0:00:00]} 86. Kd5 {[%emt 0:00:06]} Qc4+ {[%emt 0:00:00]} 87. Ke5 {[%emt 0:00:09]} Kc5 {[%emt 0:00:00][%cal Bb4c5,Bc5d5,Bd5d6][%mdl 32]} 88. Kf5 {[%emt 0:00:11]} Kd5 {[%emt 0:00:00]} 89. Kf6 {[%emt 0:00:11]} Qf4+ {[%emt 0:00:00]} 90. Ke7 {[%emt 0:00:30]} Qf5 {[%emt 0:00:00]} 91. Ke8 {[%emt 0:00:12]} Kd6 {[%emt 0:00:00]} 92. Kd8 {[%emt 0:00:11]} Qf8# {[%emt 0:00:00] Weighted Error Value: White=0.30/Black=0.32} 0-1